bitfinex-derivatives/quotes_SOLF0:USTF0_20250416
["timestamp","ask_amount","ask_price","bid_price","bid_amount"]
[1744810154738,0.05642931,124.78,124.75,0.05359739]
[1744810154929,5.83870805,124.83,124.76,16.67315253]
[1744810155132,16.67315253,124.85,124.77,2.062]
[1744810155427,5.8385886,124.84,124.8,8.0131]
[1744810155631,16.67315253,124.85,124.77,2.062]
[1744810155835,140.67315253,124.87,124.78,16.67315253]
[1744810156035,0.05495677,124.82,124.8,0.05766302]
[1744810156230,8.0118,124.83,124.8,8.07076302]
[1744810156427,0.05078776,124.84,124.8,0.05766302]
[1744810156635,16.67315253,124.83,124.8,0.05766302]
[1744810156839,8.0128,124.81,124.8,0.05766302]
[1744810162443,0.05078776,124.84,124.8,8.07096302]
[1744810162643,5.88933786,124.84,124.8,0.05766302]
[1744810162845,0.05078776,124.84,124.8,0.05766302]
[1744810163046,8.06198776,124.84,124.8,0.05766302]
[1744810163546,8.06198776,124.84,124.81,8.0123]
[1744810167150,18.7287288,124.84,124.81,8.0123]
[1744810169850,0.05078776,124.84,124.8,10.72440406]
[1744810170144,0.05078776,124.84,124.81,2.2148]
[1744810170348,10.7175288,124.84,124.81,2.2148]
[1744810170541,18.7285288,124.84,124.81,2.2148]
[1744810170745,10.7175288,124.84,124.81,2.2148]
[1744810170942,10.7175288,124.84,124.82,8.0118]
[1744810171259,0.05078776,124.84,124.81,2.2148]
[1744810171649,0.05078776,124.84,124.82,8.0118]
[1744810172556,8.06168776,124.84,124.82,8.0118]
[1744810172756,0.05078776,124.84,124.82,8.0118]
[1744810173452,0.05078776,124.84,124.81,10.2272]
[1744810173660,18.7288288,124.84,124.8,0.05766302]
[1744810174257,18.7288288,124.84,124.82,8.0121]
[1744810174556,18.7288288,124.84,124.8,0.05766302]
[1744810175758,10.66674104,124.82,124.8,0.05766302]
[1744810175961,10.66674104,124.81,124.8,0.05766302]
[1744810176663,18.67954104,124.81,124.8,0.05766302]
[1744810177163,18.67924104,124.82,124.8,8.07076302]
[1744810177459,10.66674104,124.82,124.8,8.07076302]
[1744810177760,18.67924104,124.82,124.8,0.05766302]
[1744810178364,18.67924104,124.82,124.8,8.07096302]
[1744810181267,8.0119,124.83,124.8,8.07096302]
[1744810181463,18.67864104,124.83,124.8,8.07096302]
[1744810181669,10.66674104,124.83,124.8,0.05766302]
[1744810181869,10.7175288,124.84,124.8,0.05766302]
[1744810182059,0.05078776,124.84,124.83,8.0115]
[1744810191881,0.05078776,124.84,124.83,18.67824104]
[1744810192079,8.0085,124.88,124.86,8.0093]
[1744810192380,5.85400515,124.87,124.86,8.0093]
[1744810192576,5.85400515,124.87,124.85,8.0098]
[1744810192783,24.52984619,124.87,124.85,8.0098]
[1744810192975,18.67584104,124.87,124.85,8.0098]
[1744810193176,18.67634104,124.86,124.85,0.05340094]
[1744810193882,18.73448543,124.87,124.85,0.05340094]
[1744810194079,18.73448543,124.87,124.85,8.06350094]
[1744810196375,10.72518543,124.87,124.85,8.06350094]
[1744810196882,0.05844439,124.87,124.86,8.0096]
[1744810197184,5.91344957,124.87,124.86,8.0096]
[1744810197685,5.91344957,124.87,124.85,8.06320094]
[1744810198184,24.58919061,124.87,124.85,8.06320094]
[1744810198386,18.73418543,124.87,124.85,8.06320094]
[1744810199087,5.859076,124.86,124.85,8.06320094]
[1744810200091,10.72518543,124.87,124.86,8.0096]
[1744810200390,0.05844439,124.87,124.86,8.0096]
[1744810202285,10.72518543,124.87,124.85,0.05340094]
[1744810202591,16.52780357,124.86,124.81,37.79958128]
[1744810202893,5.86106253,124.85,124.81,37.79958128]
[1744810203186,10.66674104,124.83,124.82,75.60209691]
[1744810203585,10.66674104,124.85,124.82,75.60209691]
[1744810203783,0.05529608,124.84,124.82,75.60209691]
[1744810203990,10.66674104,124.88,124.83,10.66674104]
[1744810204178,16.53163847,124.87,124.82,86.32161582]
[1744810204384,10.66674104,124.89,124.84,10.66674104]
[1744810204584,134.66674104,124.9,124.84,10.66674104]
[1744810204886,5.72037063,124.89,124.84,10.66674104]
[1744810205087,0.05779759,124.88,124.86,0.05991476]
[1744810205284,10.66674104,124.87,124.86,0.05991476]
[1744810205488,140.3841263,124.87,124.82,75.60209691]
[1744810205688,10.66674104,124.83,124.8,138.31429635]
[1744810205991,6.3653,124.86,124.8,138.31429635]
[1744810206191,10.66674104,124.81,124.8,138.31429635]
[1744810206387,10.66674104,124.81,124.8,25.69785118]
[1744810206691,0.05941827,124.82,124.8,25.69785118]
[1744810206991,0.05941827,124.82,124.81,8.0125]
[1744810207787,5.71664031,124.86,124.8,32.27654181]
[1744810207991,23.11368784,124.92,124.83,16.66688784]
[1744810208195,5.71993469,124.91,124.87,8.0084]
[1744810208492,8.0084,124.88,124.83,16.66688784]
[1744810208789,124.0,124.9,124.87,8.0089]
[1744810208985,5.71901672,124.89,124.83,16.66688784]
[1744810209181,5.71901672,124.89,124.87,0.06144958]
[1744810209383,5.71901672,124.89,124.87,8.06994958]
[1744810209588,5.77838056,124.89,124.87,0.06144958]
[1744810209787,22.38590456,124.88,124.8,6.5203]
[1744810209986,16.66688784,124.86,124.8,6.5203]
[1744810210188,16.66688784,124.84,124.78,9.45658147]
[1744810210388,16.66688784,124.82,124.78,9.45658147]
[1744810210993,0.05498774,124.81,124.8,8.0134]
[1744810211194,5.71664268,124.85,124.79,16.66688784]
[1744810211393,0.05685177,124.81,124.79,0.05976784]
[1744810211792,0.05303975,124.81,124.79,0.05541045]
[1744810212593,0.05303975,124.81,124.8,8.0134]
[1744810212792,5.71666482,124.86,124.79,2.07561045]
[1744810212992,5.71666482,124.85,124.79,2.0202]
[1744810213192,593.32688784,124.88,124.79,18.68708784]
[1744810213393,132.0071,124.9,124.83,16.66688784]
[1744810213592,8.0071,124.9,124.88,8.0082]
[1744810213793,4.1691,124.92,124.88,8.0082]
[1744810213990,0.05887335,124.9,124.88,0.06089087]
[1744810214198,8.0054,124.93,124.9,8.0064]
[1744810214398,0.05929301,124.9,124.88,0.06089087]
[1744810214597,5.71825785,124.91,124.88,0.06089087]
[1744810214799,0.05949398,124.9,124.89,8.0073]
[1744810219803,2.1805,124.99,124.94,8.0041]
[1744810220004,5.71398228,124.98,124.87,26.62961459]
[1744810220304,129.71398228,124.97,124.92,8.0057]
[1744810220504,5.70951226,124.96,124.92,8.0057]
[1744810221007,0.05822162,124.95,124.93,0.05640429]
[1744810221202,0.05822162,124.95,124.87,26.62961459]
[1744810221502,8.0041,124.95,124.93,0.05182855]
[1744810221707,0.05699229,124.92,124.9,0.05891663]
[1744810221907,0.05769291,124.95,124.87,26.62961459]
[1744810222106,8.0048,124.94,124.91,8.006]
[1744810222307,0.05186851,124.93,124.91,8.006]
[1744810222606,0.05186851,124.93,124.92,8.0057]
[1744810223207,0.05186851,124.93,124.91,8.006]
[1744810223907,0.05186851,124.93,124.92,8.0057]
[1744810225508,124.0,124.97,124.9,26.68908037]
[1744810225806,124.0,124.97,124.91,2.1505]
[1744810225807,132.0028,124.97,124.91,2.1505]
[1744810226006,2.0966,125.01,124.96,8.0032]
[1744810226207,5.70533827,125.0,124.93,26.62961459]
[1744810226403,124.0,125.03,124.98,8.0016]
[1744810226807,8.0002,125.01,124.98,8.0016]
[1744810227003,0.05844615,125.02,124.99,8.0623535]
[1744810227204,124.0,125.03,124.93,26.62961459]
[1744810227405,0.05518207,125.02,124.99,0.05813205]
[1744810227808,0.05796136,125.02,124.99,0.05813205]
[1744810228009,8.05756136,125.02,124.99,0.05813205]
[1744810228210,0.05796136,125.02,124.99,0.05813205]
[1744810229508,8.0002,125.01,124.99,0.05813205]
[1744810229709,0.05796136,125.02,124.99,0.05813205]
[1744810229912,0.05796136,125.02,125.0,8.0005]
[1744810230312,0.05796136,125.02,125.01,8.0]
[1744810230610,30.77111459,125.09,124.99,0.05813205]
[1744810230808,5.68348163,125.08,125.0,8.0004]
[1744810231006,124.0,125.07,125.0,8.0004]
[1744810231207,124.0,125.07,124.97,2.0188]
[1744810231408,26.62961459,125.04,124.99,8.0011]
[1744810231606,7.9998,125.02,125.0,0.0536128]
[1744810231907,0.05503998,125.03,125.0,0.0536128]
[1744810232310,8.0,125.01,125.0,0.0536128]
[1744810236407,7.9997,125.02,125.0,0.0536128]
[1744810237110,8.0,125.01,125.0,0.0536128]
[1744810237302,0.05503998,125.03,125.0,0.0536128]
[1744810237506,8.05373998,125.03,125.0,0.0536128]
[1744810237702,0.05503998,125.03,125.0,0.0536128]
[1744810238211,8.05433998,125.03,125.0,8.0541128]
[1744810238409,0.05503998,125.03,125.0,0.0536128]
[1744810238608,7.9996,125.02,125.0,0.0536128]
[1744810239210,8.05403998,125.03,125.0,8.0541128]
[1744810239810,0.05503998,125.03,125.0,0.0536128]
[1744810240213,0.05503998,125.03,125.02,7.9993]
[1744810240412,16.62102204,125.12,125.03,16.62102204]
[1744810240812,7.9952,125.09,125.06,7.9962]
[1744810241012,124.0,125.11,125.03,16.62102204]
[1744810241213,7.9945,125.1,125.07,7.9957]
[1744810241509,8.054378,125.1,125.08,0.05576729]
[1744810241713,8.054378,125.1,125.07,7.9958]
[1744810241915,8.054378,125.1,125.08,0.06052449]
[1744810242214,7.9948,125.09,125.08,0.06052449]
[1744810242514,0.059878,125.1,125.08,0.06052449]
[1744810242712,8.054378,125.1,125.08,0.06052449]
[1744810242915,0.059878,125.1,125.01,6.2641]
[1744810243110,16.62102204,125.07,125.01,6.2641]
[1744810243312,7.9965,125.07,125.01,6.2641]
[1744810243516,28.71662199,125.09,125.01,6.2641]
[1744810243706,7.9981,125.04,124.97,964.59892199]
[1744810243917,26.57892199,125.06,125.0,8.0004]
[1744810244111,0.05727105,125.02,125.0,8.0004]
[1744810244513,0.05727105,125.02,125.0,8.05998532]
[1744810244713,0.05727105,125.02,125.01,8.0]
[1744810246010,28.71662199,125.09,125.03,7.9981]
[1744810246215,7.9965,125.07,124.96,26.57892199]
[1744810246713,7.9965,125.07,125.03,7.9983]
[1744810247017,28.71662199,125.09,124.96,26.57892199]
[1744810247213,28.71662199,125.09,125.04,0.05645705]
[1744810247214,0.05794357,125.06,125.04,0.05645705]
[1744810247418,0.05794357,125.06,125.04,0.05709216]
[1744810247917,0.05794357,125.06,125.04,8.05479216]
[1744810248821,0.05794357,125.06,125.04,0.05709216]
[1744810249218,8.05504357,125.06,125.04,0.05709216]
[1744810250621,8.05504357,125.06,125.04,8.05509216]
[1744810250815,8.05504357,125.06,125.04,0.05709216]
[1744810251017,7.9974,125.05,125.04,0.05709216]
[1744810251322,0.05794357,125.06,125.04,0.05709216]
[1744810251719,0.05794357,125.06,124.95,9.45658147]
[1744810251720,26.63686556,125.06,124.95,9.45658147]
[1744810251916,26.57892199,125.04,124.95,15.92238147]
[1744810252119,8.0002,125.01,124.95,15.92238147]
[1744810252314,26.57892199,125.04,124.97,8.0022]
[1744810252519,26.57892199,125.01,124.96,9.45658147]
[1744810252923,0.05207111,125.0,124.97,0.06060826]
[1744810253125,8.0019,124.98,124.97,0.06060826]
[1744810253519,0.05207111,125.0,124.97,0.06060826]
[1744810253720,8.0017,124.99,124.97,0.06060826]
[1744810254020,0.05207111,125.0,124.97,0.06060826]
[1744810254219,8.0019,124.98,124.97,0.06060826]
[1744810255427,26.57892199,124.98,124.91,4.3103]
[1744810256019,26.57892199,124.98,124.9,9.45658147]
[1744810256524,0.06066084,124.95,124.93,0.05901319]
[1744810256731,8.06476084,124.95,124.93,0.05901319]
[1744810257023,26.63958283,124.95,124.9,9.45658147]
[1744810257419,8.0064,124.91,124.9,9.45658147]
[1744810257615,8.0064,124.91,124.89,28.36974442]
[1744810257616,26.57892199,124.92,124.89,28.36974442]
[1744810257925,8.007,124.9,124.89,28.36974442]
[1744810258125,26.57892199,124.92,124.86,9.3994609]
[1744810258325,0.05039753,124.91,124.88,0.05564546]
[1744810258522,26.57892199,124.9,124.86,9.3994609]
[1744810259127,8.0089,124.87,124.86,9.3994609]
[1744810259627,8.0089,124.87,124.85,28.36974442]
[1744810259628,8.0096,124.86,124.85,24.83134442]
[1744810259826,26.57892199,124.87,124.84,135.72036707]
[1744810260329,26.57892199,124.85,124.82,188.31526891]
[1744810260622,8.0121,124.82,124.81,130.97008248]
[1744810260822,13.68459517,124.82,124.81,16.16172901]
[1744810261023,137.69249517,124.82,124.8,6.032e-05]
[1744810261226,40.26421716,124.81,124.8,6.032e-05]
[1744810261423,40.27141716,124.81,124.76,28.18556645]
[1744810261624,26.57892199,124.78,124.75,75.16151055]
[1744810261822,26.57892199,124.81,124.72,187.90377638]
[1744810261823,26.57892199,124.76,124.72,187.90377638]
[1744810262023,26.57892199,124.73,124.69,276.99080607]
[1744810262330,26.57892199,124.74,124.71,195.09422048]
[1744810262519,5.6479116,124.73,124.71,169.05072048]
[1744810262925,8.0186,124.72,124.71,169.05072048]
[1744810263130,5.6479116,124.72,124.69,276.99080607]
[1744810263329,26.57892199,124.7,124.69,75.24454941]
[1744810263532,26.57892199,124.7,124.69,0.05439647]
[1744810264026,8.0198,124.7,124.69,0.05439647]
[1744810264230,16.0398,124.7,124.69,9.647e-05]
[1744810264823,9.41635276,124.7,124.69,9.647e-05]
[1744810265030,8.0198,124.7,124.69,9.647e-05]
[1744810265537,34.59892199,124.7,124.56,4.0745]
[1744810265832,26.57892199,124.65,124.56,2.0217]
[1744810266026,8.0267,124.6,124.54,8.0297]
[1744810266222,576.7,124.64,124.53,2.0989]
[1744810266624,576.7,124.64,124.48,4.2521]
[1744810266831,0.05781365,124.6,124.53,26.57892199]
[1744810267027,99.05973207,124.63,124.53,26.57892199]
[1744810267232,142.57716284,124.63,124.49,2.1623]
[1744810267432,99.05973207,124.63,124.53,43.51743077]
[1744810267730,8.0263,124.6,124.54,8.0295]
[1744810267932,99.05973207,124.63,124.53,43.51743077]
[1744810268132,0.06106078,124.58,124.56,0.05254444]
[1744810268430,99.05973207,124.63,124.56,0.05254444]
[1744810268728,43.51743077,124.57,124.39,405.51743077]
[1744810268934,225.30009386,124.55,124.45,43.51743077]
[1744810269228,8.032,124.52,124.46,8.0348]
[1744810269627,225.30009386,124.55,124.44,43.51743077]
[1744810269930,43.51743077,124.54,124.42,43.51743077]
[1744810270128,71.86880824,124.47,124.4,6.432]
[1744810270428,71.86880824,124.47,124.41,43.51743077]
[1744810270624,0.05280271,124.45,124.44,43.51743077]
[1744810270826,56.21830824,124.47,124.46,8.0353]
[1744810271125,179.67202061,124.52,124.46,8.0353]
[1744810271126,72.86851836,124.56,124.46,43.51743077]
[1744810271325,603.67121371,124.62,124.54,43.51743077]
[1744810271532,26.19121371,124.62,124.55,43.51743077]
[1744810271930,26.19121371,124.62,124.48,910.33224212]
[1744810271931,101.86864448,124.62,124.52,43.51743077]
[1744810272137,43.51743077,124.57,124.46,43.51743077]
[1744810272336,620.99743077,124.6,124.46,43.51743077]
[1744810272537,577.48,124.6,124.53,43.51743077]
[1744810272932,617.6668,124.6,124.54,8.0297]
[1744810273131,585.5068,124.6,124.54,8.0297]
[1744810273336,0.06005523,124.58,124.53,43.51743077]
[1744810273641,0.06005523,124.58,124.55,8.0293]
[1744810273835,26.19121371,124.62,124.56,43.51743077]
[1744810274040,12.72858884,124.62,124.61,8.0256]
[1744810274235,12.72858884,124.62,124.6,43.51743077]
[1744810274438,12.72858884,124.62,124.61,8.0256]
[1744810274830,6.16318884,124.62,124.61,8.0256]
[1744810275031,6.16318884,124.62,124.6,43.57741986]
[1744810275336,6.16318884,124.62,124.6,0.05998909]
[1744810275839,38.32318884,124.62,124.6,0.05998909]
[1744810276039,32.16,124.62,124.6,0.05998909]
[1744810276238,32.16,124.62,124.54,43.51743077]
[1744810276939,6.5561,124.65,124.54,43.51743077]
[1744810277143,38.7161,124.65,124.54,43.51743077]
[1744810277342,0.05509729,124.61,124.57,43.51743077]
[1744810277540,34.3521,124.65,124.57,43.51743077]
[1744810277743,0.05574712,124.6,124.59,8.0267]
[1744810278039,34.3521,124.65,124.57,43.51743077]
[1744810278237,0.05217432,124.61,124.57,43.51743077]
[1744810278440,4.4498,124.72,124.6,43.51743077]
[1744810278644,4.4498,124.72,124.64,43.51743077]
[1744810278645,36.6098,124.72,124.64,43.51743077]
[1744810278840,42.3958,124.72,124.67,8.0214]
[1744810279039,42.3958,124.72,124.64,43.51743077]
[1744810279242,34.3769,124.72,124.64,43.51743077]
[1744810279543,0.05407684,124.69,124.67,0.0517714]
[1744810280143,0.05407684,124.69,124.58,621.15743077]
[1744810280144,32.21407684,124.69,124.58,621.15743077]
[1744810280341,43.51743077,124.67,124.55,405.51743077]
[1744810280542,43.51743077,124.67,124.59,8.0265]
[1744810280740,43.51743077,124.64,124.51,621.15743077]
[1744810280934,43.51743077,124.61,124.51,621.15743077]
[1744810281139,8.0273,124.59,124.54,8.0295]
[1744810281449,0.05319577,124.57,124.51,621.15743077]
[1744810281838,32.21319577,124.57,124.53,8.0304]
[1744810282043,32.21319577,124.57,124.48,43.51743077]
[1744810282247,32.16,124.57,124.48,43.51743077]
[1744810282447,0.05965249,124.54,124.45,43.51743077]
[1744810282647,2.0296,124.56,124.45,43.51743077]
[1744810282843,0.06147611,124.51,124.45,43.51743077]
[1744810283044,0.06147611,124.51,124.48,43.51743077]
[1744810283444,7.611e-05,124.51,124.5,8.0321]
[1744810284848,2.1797,124.62,124.5,8.04]
[1744810285051,34.3397,124.62,124.53,43.51743077]
[1744810285444,8.026,124.61,124.53,43.51743077]
[1744810285645,32.16,124.61,124.52,43.51743077]
[1744810285846,0.05083452,124.58,124.56,8.08413827]
[1744810286149,0.05083452,124.58,124.56,0.05563827]
[1744810286345,32.21083452,124.58,124.56,0.05563827]
[1744810286851,9.36377308,124.58,124.56,0.05563827]
[1744810287046,8.0282,124.57,124.56,0.05563827]
[1744810287245,43.51743077,124.58,124.46,405.51743077]
[1744810287447,52.88120385,124.58,124.52,8.0309]
[1744810287648,8.0292,124.56,124.52,8.0309]
[1744810287848,52.88120385,124.58,124.54,108.6379823]
[1744810287849,5.27511193,124.58,124.54,108.6379823]
[1744810288052,5.27511193,124.58,124.54,81.8299823]
[1744810288248,43.51743077,124.55,124.51,3.21345166]
[1744810288552,43.51743077,124.55,124.52,0.05521772]
[1744810288754,43.51743077,124.54,124.53,110.43080405]
[1744810289450,534.25758814,124.56,124.53,110.43080405]
[1744810290051,534.31819818,124.56,124.53,110.49075447]
[1744810290652,0.06061004,124.56,124.53,0.05995042]
[1744810290851,0.06061004,124.56,124.53,8.09045042]
[1744810291049,0.06061004,124.56,124.53,0.05995042]
[1744810292652,0.06061004,124.56,124.55,8.0295]
[1744810293050,577.88,124.62,124.54,215.72593207]
[1744810293249,577.88,124.62,124.55,2.1157]
[1744810293755,43.51743077,124.56,124.39,141.02482139]
[1744810294050,43.51743077,124.53,124.41,45.63313077]
[1744810294248,0.05674076,124.49,124.46,8.09303431]
[1744810294556,0.05674076,124.49,124.46,0.05803431]
[1744810294748,43.51743077,124.51,124.46,8.09323431]
[1744810294947,43.51743077,124.51,124.46,8.0352]
[1744810295249,8.0331,124.5,124.46,8.0352]
[1744810295453,439.17931641,124.54,124.49,8.0333]
[1744810295754,439.17931641,124.54,124.44,43.51743077]
[1744810295948,0.05097886,124.53,124.5,0.05585883]
[1744810296150,43.51743077,124.58,124.5,0.05585883]
[1744810296450,0.059081,124.53,124.5,8.0323]
[1744810296852,0.059081,124.53,124.5,0.05742612]
[1744810297049,0.059081,124.53,124.51,8.0317]
[1744810297250,0.059081,124.53,124.5,0.05742612]
[1744810297653,0.059081,124.53,124.51,8.0318]
[1744810298349,0.059081,124.53,124.52,8.0314]
[1744810298547,24.04,124.63,124.5,51.61485689]
[1744810298548,43.51743077,124.63,124.5,51.61485689]
[1744810298751,43.51743077,124.63,124.47,360.33315556]
[1744810298752,621.55743077,124.66,124.53,43.51743077]
[1744810299052,622.95454421,124.66,124.53,43.51743077]
[1744810299455,578.04,124.66,124.56,43.51743077]
[1744810299652,0.05374116,124.61,124.58,0.06178102]
[1744810299961,0.05374116,124.61,124.6,8.0263]
[1744810300255,0.05374116,124.61,124.58,2.1940402]
[1744810300452,0.05374116,124.61,124.6,8.0263]
[1744810300658,0.05374116,124.61,124.58,2.1940402]
[1744810300959,0.05374116,124.61,124.6,8.0263]
[1744810301153,8.0236,124.65,124.58,2.1940402]
[1744810301348,8.0236,124.65,124.58,2.1369]
[1744810301553,8.0236,124.65,124.61,8.0251]
[1744810302158,578.04,124.66,124.58,2.1369]
[1744810302359,0.05309944,124.64,124.62,0.05593306]
[1744810302559,43.51743077,124.69,124.62,0.05593306]
[1744810302856,5.64706936,124.68,124.62,0.05593306]
[1744810303365,43.51743077,124.66,124.62,0.05593306]
[1744810303562,5.64706936,124.65,124.62,0.05593306]
[1744810303761,5.70479485,124.65,124.62,0.05593306]
[1744810303964,5.64706936,124.64,124.62,0.05593306]
[1744810304160,8.0243,124.63,124.62,0.05593306]
[1744810304365,49.19930551,124.63,124.53,43.51743077]
[1744810304560,5.68187474,124.62,124.54,2.046]
[1744810304764,43.51743077,124.67,124.56,43.51743077]
[1744810304967,5.68051862,124.66,124.56,43.51743077]
[1744810305267,8.0238,124.64,124.56,43.51743077]
[1744810305461,0.05758928,124.62,124.6,8.07952442]
[1744810305658,8.024,124.64,124.6,8.07952442]
[1744810305863,0.05654622,124.62,124.6,0.05342442]
[1744810306168,0.05443733,124.62,124.6,0.05342442]
[1744810306569,0.05443733,124.62,124.61,8.0256]
[1744810306764,44.91423578,124.7,124.6,0.05342442]
[1744810307068,5.67743134,124.69,124.58,43.51743077]
[1744810307269,5.67743134,124.68,124.58,43.51743077]
[1744810307465,5.67743134,124.67,124.66,8.0224]
[1744810307664,44.91373138,124.74,124.66,8.0224]
[1744810307866,8.0202,124.7,124.66,8.0224]
[1744810308066,5.68092231,124.69,124.68,0.06127184]
[1744810308262,5.68092231,124.69,124.62,4.3715]
[1744810308462,5.68092231,124.68,124.67,0.05947389]
[1744810308667,5.68092231,124.68,124.62,4.3715]
[1744810308965,43.51743077,124.74,124.66,0.05832029]
[1744810309171,5.67795777,124.71,124.66,0.05832029]
[1744810309371,5.73118023,124.7,124.66,0.05832029]
[1744810309573,8.0218,124.67,124.66,0.05832029]
[1744810309870,5.67677534,124.67,124.66,0.05832029]
[1744810310065,5.67677534,124.69,124.66,0.05832029]
[1744810310370,5.67608752,124.68,124.66,0.05832029]
[1744810310572,8.0218,124.67,124.66,0.05832029]
[1744810310772,0.05322246,124.7,124.66,0.05832029]
[1744810311073,5.67566108,124.69,124.66,0.05832029]
[1744810311273,0.05322246,124.7,124.66,0.05832029]
[1744810311473,5.72745205,124.7,124.66,0.05832029]
[1744810311873,0.05322246,124.7,124.66,0.05832029]
[1744810312268,8.0209,124.69,124.66,0.05832029]
[1744810312474,0.05322246,124.7,124.66,0.05832029]
[1744810313375,0.05322246,124.7,124.68,8.021]
[1744810313672,0.05322246,124.7,124.66,0.05832029]
[1744810313872,0.05322246,124.7,124.69,8.0205]
[1744810314977,8.0175,124.74,124.71,8.019]
[1744810315275,8.0175,124.74,124.66,43.51743077]
[1744810315575,8.0175,124.74,124.7,8.0195]
[1744810315771,124.0,124.75,124.66,43.51743077]
[1744810315967,5.67175978,124.74,124.64,43.51743077]
[1744810316168,0.0521634,124.72,124.69,0.05466103]
[1744810316573,0.0521634,124.72,124.69,8.07486103]
[1744810316775,0.0521634,124.72,124.69,0.05466103]
[1744810317275,8.0198,124.7,124.69,0.05466103]
[1744810317474,0.0521634,124.72,124.69,0.05466103]
[1744810318667,124.0,124.75,124.69,43.5720918]
[1744810318873,8.0151,124.78,124.7,2.1847]
[1744810319178,67.55303077,124.83,124.7,4.4179]
[1744810319375,8.017,124.75,124.7,4.4179]
[1744810319869,0.05934571,124.74,124.72,8.0182]
[1744810320066,0.05934571,124.74,124.71,0.05164752]
[1744810320266,0.05934571,124.74,124.73,8.0179]
[1744810320465,8.015,124.78,124.73,8.0179]
[1744810320670,8.015,124.78,124.71,43.51743077]
[1744810320879,43.51743077,124.86,124.74,43.51743077]
[1744810321073,8.0139,124.8,124.74,43.51743077]
[1744810321269,43.51743077,124.86,124.74,43.51743077]
[1744810321477,124.0,124.83,124.74,43.51743077]
[1744810321671,8.0138,124.8,124.74,43.51743077]
[1744810321874,8.07113439,124.8,124.78,0.05693701]
[1744810322673,0.05733439,124.8,124.79,8.0141]
[1744810322875,124.0,124.83,124.78,0.05693701]
[1744810323079,124.0,124.83,124.78,2.11233701]
[1744810323284,577.44,124.9,124.78,2.11233701]
[1744810323475,49.17396903,124.89,124.78,2.11233701]
[1744810323679,8.0107,124.85,124.78,2.0554]
[1744810323881,124.0,124.88,124.79,2.064]
[1744810324180,124.0,124.88,124.8,43.57390139]
[1744810324378,124.0,124.88,124.8,43.51743077]
[1744810324680,8.0061,124.92,124.88,8.0078]
[1744810324883,577.24,124.97,124.86,43.51743077]
[1744810325082,124.0,124.96,124.89,43.51743077]
[1744810325283,44.9106847,125.02,124.89,43.51743077]
[1744810325482,0.05444286,124.94,124.91,0.05948086]
[1744810325882,124.0,124.99,124.9,43.51743077]
[1744810326082,0.05388424,124.94,124.91,0.05816527]
[1744810326280,0.05388424,124.94,124.87,47.64493077]
[1744810326478,0.05388424,124.94,124.91,0.05257466]
[1744810327482,8.0057,124.92,124.91,0.05257466]
[1744810328985,0.05388424,124.94,124.91,0.05257466]
[1744810330783,8.0056,124.93,124.91,0.05257466]
[1744810331085,43.51743077,124.92,124.79,580.51743077]
[1744810331285,43.51743077,124.9,124.83,8.0111]
[1744810331488,43.51743077,124.9,124.8,6.458]
[1744810331789,8.0074,124.9,124.85,8.0098]
[1744810332186,43.57534856,124.89,124.86,0.05166744]
[1744810332385,43.51743077,124.87,124.76,360.33315556]
[1744810332588,43.51743077,124.84,124.75,6.2587]
[1744810332790,8.0126,124.82,124.77,8.015]
[1744810332985,43.51743077,124.84,124.75,6.2587]
[1744810333387,43.51743077,124.88,124.57,24.0845]
[1744810333388,8.016,124.76,124.66,360.33315556]
[1744810333690,43.51743077,124.8,124.78,0.00686423]
[1744810333889,8.0156,124.77,124.71,8.0187]
[1744810334091,8.0156,124.77,124.68,4.1862]
[1744810334786,8.0171,124.75,124.71,0.0569132]
[1744810334994,0.05166549,124.74,124.71,8.0756132]
[1744810335189,8.0137,124.8,124.7,43.51743077]
[1744810335387,576.76,124.82,124.73,43.51743077]
[1744810335593,43.51743077,124.87,124.76,43.51743077]
[1744810335795,576.76,124.89,124.79,43.51743077]
[1744810336095,43.51743077,124.93,124.79,43.51743077]
[1744810336392,43.51743077,124.93,124.82,43.51743077]
[1744810336692,0.05296621,124.87,124.85,0.05793866]
[1744810337089,43.51743077,124.93,124.82,43.51743077]
[1744810337291,0.05197233,124.87,124.85,0.05601574]
[1744810337488,0.05197233,124.87,124.77,366.81135556]
[1744810337696,43.51743077,124.88,124.77,366.81135556]
[1744810337894,8.0109,124.84,124.77,366.81135556]
[1744810338096,43.51743077,124.88,124.8,8.0132]
[1744810338392,8.0112,124.84,124.77,366.81135556]
[1744810338595,0.05671059,124.85,124.83,0.05832391]
[1744810338795,43.51743077,124.88,124.77,366.81135556]
[1744810338995,43.51743077,124.88,124.77,6.4782]